[Event "Titled Tuesday Blitz March 08 Early 2022"]
[White "Samunenkov, Ihor"]
[Black "Vusatiuk, Vladimir"]
[WhiteFideId "14187086"]
[BlackFideId "14118610"]
[WhiteElo "2409"]
[BlackElo "2157"]
[Result "0-1"]
[Round "09"]
[TimeControl "180+1"]
[Date "2022.03.08"]
[WhiteClock "0:00:01"]
[BlackClock "0:00:58"]

1. e4 {[%clk 0:03:00]}  c5 {[%clk 0:02:59]} 2. Nf3 {[%clk 0:03:01]}  d6 {[%clk 0:02:59]} 3. d4 {[%clk 0:03:01]}  cxd4 {[%clk 0:02:59]} 4. Nxd4 {[%clk 0:03:02]}  Nf6 {[%clk 0:03:00]} 5. Nc3 {[%clk 0:03:03]}  Nc6 {[%clk 0:02:55]} 6. f3 {[%clk 0:02:58]}  e5 {[%clk 0:02:50]} 7. Nb3 {[%clk 0:02:58]}  Be6 {[%clk 0:02:49]} 8. Be3 {[%clk 0:02:57]}  d5 {[%clk 0:02:33]} 9. exd5 {[%clk 0:02:48]}  Nxd5 {[%clk 0:02:33]} 10. Nxd5 {[%clk 0:02:48]}  Qxd5 {[%clk 0:02:29]} 11. Qxd5 {[%clk 0:02:14]}  Bxd5 {[%clk 0:02:29]} 12. O-O-O {[%clk 0:02:14]}  O-O-O {[%clk 0:02:22]} 13. c4 {[%clk 0:02:03]}  Be6 {[%clk 0:02:22]} 14. Rxd8+ {[%clk 0:02:03]}  Kxd8 {[%clk 0:02:21]} 15. Be2 {[%clk 0:01:50]}  b6 {[%clk 0:01:43]} 16. Rd1+ {[%clk 0:01:15]}  Kc7 {[%clk 0:01:42]} 17. f4 {[%clk 0:00:59]}  f6 {[%clk 0:01:24]} 18. fxe5 {[%clk 0:00:49]}  fxe5 {[%clk 0:01:25]} 19. h3 {[%clk 0:00:17]}  Be7 {[%clk 0:01:22]} 20. Kb1 {[%clk 0:00:11]}  Bf5+ {[%clk 0:01:18]} 21. Bd3 {[%clk 0:00:11]}  Rd8 {[%clk 0:01:17]} 22. Nc1 {[%clk 0:00:05]}  Nb4 {[%clk 0:01:15]} 23. Bxf5 {[%clk 0:00:05]}  Rxd1 {[%clk 0:01:15]} 24. a3 {[%clk 0:00:06]}  Nc6 {[%clk 0:01:14]} 25. Bxh7 {[%clk 0:00:06]}  Bc5 {[%clk 0:01:06]} 26. Bc2 {[%clk 0:00:04]}  Rf1 {[%clk 0:01:02]} 27. Bxc5 {[%clk 0:00:02]}  bxc5 {[%clk 0:01:03]} 28. Be4 {[%clk 0:00:02]}  Nd4 {[%clk 0:01:01]} 29. Bd3 {[%clk 0:00:01]}  Rg1 {[%clk 0:00:58]} 30. b4 {[%clk 0:00:01]}  Nb3 {[%clk 0:00:58]} 0-1


[Site "https://www.chess.com"]

[Event "Titled Tuesday Blitz March 08 Early 2022"]
[White "Sanal, Vahap"]
[Black "Bashirli, Nail"]
[WhiteFideId "6300545"]
[BlackFideId "13406809"]
[WhiteElo "2603"]
[BlackElo "2333"]
[Result "1-0"]
[Round "09"]
[TimeControl "180+1"]
[Date "2022.03.08"]
[WhiteClock "0:00:18"]
[BlackClock "0:00:04"]

1. e4 {[%clk 0:03:00]}  Nf6 {[%clk 0:02:53]} 2. e5 {[%clk 0:03:00]}  Nd5 {[%clk 0:02:52]} 3. d4 {[%clk 0:03:01]}  d6 {[%clk 0:02:52]} 4. c4 {[%clk 0:03:01]}  Nb6 {[%clk 0:02:52]} 5. f4 {[%clk 0:03:01]}  dxe5 {[%clk 0:02:52]} 6. fxe5 {[%clk 0:02:59]}  Bf5 {[%clk 0:02:53]} 7. Be3 {[%clk 0:02:58]}  e6 {[%clk 0:02:53]} 8. Nc3 {[%clk 0:02:58]}  Be7 {[%clk 0:02:54]} 9. Be2 {[%clk 0:02:55]}  O-O {[%clk 0:02:53]} 10. Nf3 {[%clk 0:02:55]}  f6 {[%clk 0:02:54]} 11. exf6 {[%clk 0:02:55]}  Bxf6 {[%clk 0:02:54]} 12. O-O {[%clk 0:02:52]}  Nc6 {[%clk 0:02:55]} 13. Qd2 {[%clk 0:02:51]}  Qe7 {[%clk 0:02:55]} 14. Rad1 {[%clk 0:02:50]}  Rad8 {[%clk 0:02:56]} 15. h3 {[%clk 0:02:47]}  h6 {[%clk 0:02:55]} 16. b3 {[%clk 0:02:39]}  Qe8 {[%clk 0:02:55]} 17. Qe1 {[%clk 0:02:35]}  Rf7 {[%clk 0:02:55]} 18. Qg3 {[%clk 0:02:33]}  Kh8 {[%clk 0:02:49]} 19. Ne5 {[%clk 0:02:21]}  Nxe5 {[%clk 0:02:45]} 20. dxe5 {[%clk 0:02:21]}  Be7 {[%clk 0:02:42]} 21. Bf3 {[%clk 0:02:08]}  Rxd1 {[%clk 0:02:12]} 22. Rxd1 {[%clk 0:02:07]}  Bb4 {[%clk 0:02:10]} 23. Ne2 {[%clk 0:01:35]}  Rd7 {[%clk 0:02:00]} 24. Rxd7 {[%clk 0:01:31]}  Qxd7 {[%clk 0:02:01]} 25. Nd4 {[%clk 0:01:31]}  Qf7 {[%clk 0:01:52]} 26. Bxb7 {[%clk 0:01:22]}  Bd3 {[%clk 0:01:40]} 27. Bf3 {[%clk 0:01:17]}  Nd7 {[%clk 0:01:39]} 28. Nc6 {[%clk 0:01:07]}  Bc3 {[%clk 0:01:18]} 29. Bxa7 {[%clk 0:01:02]}  Qf5 {[%clk 0:01:18]} 30. Ne7 {[%clk 0:00:56]}  Qxe5 {[%clk 0:01:13]} 31. Qxe5 {[%clk 0:00:40]}  Nxe5 {[%clk 0:01:13]} 32. Bd1 {[%clk 0:00:35]}  Bb4 {[%clk 0:00:49]} 33. Bd4 {[%clk 0:00:28]}  Ng6 {[%clk 0:00:17]} 34. Nxg6+ {[%clk 0:00:25]}  Bxg6 {[%clk 0:00:16]} 35. Bb2 {[%clk 0:00:26]}  Bb1 {[%clk 0:00:15]} 36. a3 {[%clk 0:00:25]}  Bc5+ {[%clk 0:00:15]} 37. Kf1 {[%clk 0:00:25]}  e5 {[%clk 0:00:12]} 38. b4 {[%clk 0:00:25]}  Be3 {[%clk 0:00:08]} 39. Bxe5 {[%clk 0:00:23]}  Bd3+ {[%clk 0:00:07]} 40. Be2 {[%clk 0:00:23]}  Bc2 {[%clk 0:00:07]} 41. Bxc7 {[%clk 0:00:23]}  Bc1 {[%clk 0:00:08]} 42. b5 {[%clk 0:00:22]}  Bxa3 {[%clk 0:00:08]} 43. b6 {[%clk 0:00:23]}  Be4 {[%clk 0:00:08]} 44. Bf3 {[%clk 0:00:22]}  Bd3+ {[%clk 0:00:08]} 45. Ke1 {[%clk 0:00:20]}  Bb4+ {[%clk 0:00:08]} 46. Kd1 {[%clk 0:00:20]}  Ba5 {[%clk 0:00:04]} 47. c5 {[%clk 0:00:19]}  Kg8 {[%clk 0:00:04]} 48. Bd6 {[%clk 0:00:18]}  Kf7 {[%clk 0:00:04]} 49. b7 {[%clk 0:00:18]} 1-0


[Site "https://www.chess.com"]

[Event "Titled Tuesday Blitz March 08 Early 2022"]
[White "Seo, Jung Min"]
[Black "Coto Mederos, Michel"]
[WhiteFideId "1734687"]
[BlackFideId "3508528"]
[WhiteElo "2401"]
[BlackElo "2427"]
[Result "1-0"]
[Round "09"]
[TimeControl "180+1"]
[Date "2022.03.08"]
[WhiteClock "0:00:49"]
[BlackClock "0:00:04"]

1. e4 {[%clk 0:03:00]}  e5 {[%clk 0:02:55]} 2. Nf3 {[%clk 0:03:01]}  Nc6 {[%clk 0:02:54]} 3. Bb5 {[%clk 0:03:00]}  a6 {[%clk 0:02:54]} 4. Ba4 {[%clk 0:03:00]}  Nf6 {[%clk 0:02:54]} 5. O-O {[%clk 0:03:01]}  b5 {[%clk 0:02:54]} 6. Bb3 {[%clk 0:03:01]}  Bc5 {[%clk 0:02:55]} 7. a4 {[%clk 0:02:57]}  Rb8 {[%clk 0:02:54]} 8. Nxe5 {[%clk 0:02:56]}  Nxe5 {[%clk 0:02:55]} 9. d4 {[%clk 0:02:56]}  Bxd4 {[%clk 0:02:55]} 10. Qxd4 {[%clk 0:02:56]}  d6 {[%clk 0:02:56]} 11. Nc3 {[%clk 0:02:49]}  c5 {[%clk 0:02:42]} 12. Qd1 {[%clk 0:02:48]}  c4 {[%clk 0:02:42]} 13. Ba2 {[%clk 0:02:48]}  O-O {[%clk 0:02:34]} 14. axb5 {[%clk 0:02:43]}  axb5 {[%clk 0:02:33]} 15. Bg5 {[%clk 0:02:42]}  h6 {[%clk 0:02:21]} 16. Bxf6 {[%clk 0:02:42]}  Qxf6 {[%clk 0:02:22]} 17. Nd5 {[%clk 0:02:39]}  Qh4 {[%clk 0:02:10]} 18. f3 {[%clk 0:02:35]}  Be6 {[%clk 0:01:56]} 19. Nb4 {[%clk 0:02:31]}  Rfd8 {[%clk 0:01:26]} 20. c3 {[%clk 0:02:29]}  Ra8 {[%clk 0:01:03]} 21. Qd4 {[%clk 0:02:26]}  Qf4 {[%clk 0:00:41]} 22. Rad1 {[%clk 0:02:19]}  Ra4 {[%clk 0:00:40]} 23. Bb1 {[%clk 0:02:19]}  Ng6 {[%clk 0:00:29]} 24. Bc2 {[%clk 0:02:17]}  Raa8 {[%clk 0:00:28]} 25. Qb6 {[%clk 0:02:16]}  Rab8 {[%clk 0:00:23]} 26. Qf2 {[%clk 0:02:12]}  Rbc8 {[%clk 0:00:19]} 27. g3 {[%clk 0:02:11]}  Qf6 {[%clk 0:00:18]} 28. f4 {[%clk 0:02:10]}  Bh3 {[%clk 0:00:18]} 29. Rfe1 {[%clk 0:02:10]}  Ne7 {[%clk 0:00:18]} 30. Qb6 {[%clk 0:02:08]}  Rb8 {[%clk 0:00:16]} 31. Qe3 {[%clk 0:02:08]}  Qe6 {[%clk 0:00:16]} 32. Ra1 {[%clk 0:02:02]}  d5 {[%clk 0:00:13]} 33. e5 {[%clk 0:01:56]}  d4 {[%clk 0:00:12]} 34. cxd4 {[%clk 0:01:55]}  Nd5 {[%clk 0:00:12]} 35. Qe4 {[%clk 0:01:30]}  f5 {[%clk 0:00:07]} 36. Ra6 {[%clk 0:00:49]}  fxe4 {[%clk 0:00:04]} 37. Rxe6 {[%clk 0:00:48]}  Bxe6 {[%clk 0:00:04]} 38. Nc6 {[%clk 0:00:49]} 1-0


[Site "https://www.chess.com"]

[Event "Titled Tuesday Blitz March 08 Early 2022"]
[White "Shukhman, Anna"]
[Black "Agasarov, Benik"]
[WhiteFideId "54180058"]
[BlackFideId "13314823"]
[WhiteElo "1665"]
[BlackElo "2565"]
[Result "1/2-1/2"]
[Round "09"]
[TimeControl "180+1"]
[Date "2022.03.09"]
[WhiteClock "0:00:28"]
[BlackClock "0:00:58"]

1. e4 {[%clk 0:03:00]}  e5 {[%clk 0:02:53]} 2. Nf3 {[%clk 0:03:00]}  Nc6 {[%clk 0:02:48]} 3. Bb5 {[%clk 0:02:58]}  Bc5 {[%clk 0:02:46]} 4. O-O {[%clk 0:02:57]}  Nd4 {[%clk 0:02:41]} 5. Nxd4 {[%clk 0:02:55]}  Bxd4 {[%clk 0:02:32]} 6. d3 {[%clk 0:02:54]}  Bb6 {[%clk 0:02:32]} 7. Nc3 {[%clk 0:02:44]}  c6 {[%clk 0:02:29]} 8. Bc4 {[%clk 0:02:43]}  d6 {[%clk 0:02:29]} 9. a4 {[%clk 0:02:39]}  Nf6 {[%clk 0:02:26]} 10. Bg5 {[%clk 0:02:38]}  h6 {[%clk 0:02:20]} 11. Bh4 {[%clk 0:02:31]}  g5 {[%clk 0:02:20]} 12. Bg3 {[%clk 0:02:31]}  Bg4 {[%clk 0:02:20]} 13. Qd2 {[%clk 0:02:28]}  Nh5 {[%clk 0:02:19]} 14. Kh1 {[%clk 0:02:19]}  Qf6 {[%clk 0:02:16]} 15. a5 {[%clk 0:02:10]}  Bc5 {[%clk 0:02:13]} 16. Ne2 {[%clk 0:02:06]}  a6 {[%clk 0:02:01]} 17. c3 {[%clk 0:02:03]}  Nf4 {[%clk 0:01:58]} 18. f3 {[%clk 0:01:58]}  Bd7 {[%clk 0:01:38]} 19. Nxf4 {[%clk 0:01:42]}  gxf4 {[%clk 0:01:36]} 20. Bf2 {[%clk 0:01:42]}  Bxf2 {[%clk 0:01:35]} 21. Rxf2 {[%clk 0:01:41]}  h5 {[%clk 0:01:36]} 22. d4 {[%clk 0:01:38]}  h4 {[%clk 0:01:35]} 23. h3 {[%clk 0:01:37]}  Rg8 {[%clk 0:01:32]} 24. dxe5 {[%clk 0:01:33]}  dxe5 {[%clk 0:01:24]} 25. Rd1 {[%clk 0:01:12]}  Rd8 {[%clk 0:01:24]} 26. Qc2 {[%clk 0:01:07]}  Be6 {[%clk 0:01:20]} 27. Rxd8+ {[%clk 0:01:03]}  Kxd8 {[%clk 0:01:18]} 28. Qb3 {[%clk 0:01:01]}  Kc8 {[%clk 0:01:13]} 29. Bxe6+ {[%clk 0:01:00]}  Qxe6 {[%clk 0:01:12]} 30. Qxe6+ {[%clk 0:00:59]}  fxe6 {[%clk 0:01:12]} 31. Rd2 {[%clk 0:00:21]}  Rd8 {[%clk 0:01:11]} 32. Rxd8+ {[%clk 0:00:20]}  Kxd8 {[%clk 0:01:11]} 33. Kg1 {[%clk 0:00:21]}  c5 {[%clk 0:01:11]} 34. Kf2 {[%clk 0:00:21]}  Kd7 {[%clk 0:01:11]} 35. Ke2 {[%clk 0:00:20]}  Kc6 {[%clk 0:01:12]} 36. c4 {[%clk 0:00:20]}  b5 {[%clk 0:01:07]} 37. Kd3 {[%clk 0:00:20]}  Kd6 {[%clk 0:00:58]} 38. Kc3 {[%clk 0:00:20]}  Kc7 {[%clk 0:00:57]} 39. cxb5 {[%clk 0:00:19]}  axb5 {[%clk 0:00:57]} 40. b4 {[%clk 0:00:19]}  c4 {[%clk 0:00:54]} 41. Kc2 {[%clk 0:00:19]}  Kd7 {[%clk 0:00:54]} 42. Kc3 {[%clk 0:00:20]}  Kd6 {[%clk 0:00:54]} 43. Kc2 {[%clk 0:00:20]}  Kc7 {[%clk 0:00:53]} 44. Kc3 {[%clk 0:00:20]}  Kb7 {[%clk 0:00:53]} 45. Kc2 {[%clk 0:00:21]}  Ka6 {[%clk 0:00:54]} 46. Kc3 {[%clk 0:00:22]}  Kb7 {[%clk 0:00:55]} 47. Kc2 {[%clk 0:00:22]}  Ka8 {[%clk 0:00:55]} 48. Kc3 {[%clk 0:00:23]}  Kb8 {[%clk 0:00:56]} 49. Kc2 {[%clk 0:00:23]}  Kc8 {[%clk 0:00:57]} 50. Kc3 {[%clk 0:00:24]}  Kd8 {[%clk 0:00:57]} 51. Kc2 {[%clk 0:00:25]}  Kc7 {[%clk 0:00:56]} 52. Kc3 {[%clk 0:00:26]}  Kd6 {[%clk 0:00:56]} 53. Kc2 {[%clk 0:00:26]}  Kc6 {[%clk 0:00:57]} 54. Kc3 {[%clk 0:00:27]}  Kc7 {[%clk 0:00:58]} 55. Kc2 {[%clk 0:00:27]}  Kc8 {[%clk 0:00:57]} 56. Kc3 {[%clk 0:00:28]}  Kd7 {[%clk 0:00:58]} 57. Kc2 {[%clk 0:00:28]}  Kc7 {[%clk 0:00:58]} 1/2-1/2


[Site "https://www.chess.com"]

[Event "Titled Tuesday Blitz March 08 Early 2022"]
[White "Shuvalova, Polina"]
[Black "Omariev, Maksim"]
[WhiteFideId "24171760"]
[BlackFideId "4193423"]
[WhiteElo "2355"]
[BlackElo "2428"]
[Result "0-1"]
[Round "09"]
[TimeControl "180+1"]
[Date "2022.03.09"]
[WhiteClock "0:00:05"]
[BlackClock "0:00:06"]

1. d4 {[%clk 0:03:00]}  h5 {[%clk 0:02:49]} 2. e4 {[%clk 0:02:54]}  h4 {[%clk 0:02:50]} 3. h3 {[%clk 0:02:49]}  c6 {[%clk 0:02:49]} 4. Nf3 {[%clk 0:02:47]}  d5 {[%clk 0:02:48]} 5. e5 {[%clk 0:02:46]}  Bf5 {[%clk 0:02:43]} 6. Bd3 {[%clk 0:02:36]}  Bxd3 {[%clk 0:02:42]} 7. Qxd3 {[%clk 0:02:37]}  e6 {[%clk 0:02:42]} 8. Bg5 {[%clk 0:02:33]}  Be7 {[%clk 0:02:42]} 9. Be3 {[%clk 0:02:23]}  Nh6 {[%clk 0:02:38]} 10. Bxh6 {[%clk 0:02:23]}  Rxh6 {[%clk 0:02:38]} 11. Nbd2 {[%clk 0:02:23]}  Qb6 {[%clk 0:02:39]} 12. c4 {[%clk 0:02:18]}  Qxb2 {[%clk 0:02:28]} 13. O-O {[%clk 0:02:16]}  Qa3 {[%clk 0:02:22]} 14. Qc2 {[%clk 0:02:09]}  Nd7 {[%clk 0:02:15]} 15. Rab1 {[%clk 0:02:07]}  Qa6 {[%clk 0:02:11]} 16. Rfc1 {[%clk 0:02:03]}  dxc4 {[%clk 0:02:09]} 17. Nxc4 {[%clk 0:01:58]}  Nb6 {[%clk 0:01:58]} 18. Nfd2 {[%clk 0:01:51]}  O-O-O {[%clk 0:01:40]} 19. Qb2 {[%clk 0:00:37]}  Kc7 {[%clk 0:01:29]} 20. Nxb6 {[%clk 0:00:30]}  axb6 {[%clk 0:01:30]} 21. a4 {[%clk 0:00:31]}  Rhh8 {[%clk 0:01:27]} 22. Nc4 {[%clk 0:00:30]}  Rd5 {[%clk 0:01:26]} 23. Nxb6 {[%clk 0:00:29]}  Ra5 {[%clk 0:01:24]} 24. Qd2 {[%clk 0:00:18]}  Rd8 {[%clk 0:01:21]} 25. Qf4 {[%clk 0:00:18]}  Rf8 {[%clk 0:01:17]} 26. Qg4 {[%clk 0:00:18]}  g5 {[%clk 0:01:16]} 27. Qe4 {[%clk 0:00:17]}  Rd8 {[%clk 0:00:35]} 28. Qh7 {[%clk 0:00:16]}  Rf8 {[%clk 0:00:35]} 29. Qg7 {[%clk 0:00:16]}  Qd3 {[%clk 0:00:30]} 30. Nd7 {[%clk 0:00:06]}  Rd8 {[%clk 0:00:15]} 31. Nc5 {[%clk 0:00:05]}  Bxc5 {[%clk 0:00:14]} 32. dxc5 {[%clk 0:00:06]}  Qg6 {[%clk 0:00:10]} 33. Qxg6 {[%clk 0:00:06]}  fxg6 {[%clk 0:00:11]} 34. Rb4 {[%clk 0:00:06]}  Rd5 {[%clk 0:00:11]} 35. Rg4 {[%clk 0:00:06]}  Rxe5 {[%clk 0:00:11]} 36. f3 {[%clk 0:00:05]}  Raxc5 {[%clk 0:00:11]} 37. Rb1 {[%clk 0:00:05]}  Ra5 {[%clk 0:00:11]} 38. Rgb4 {[%clk 0:00:06]}  b5 {[%clk 0:00:09]} 39. axb5 {[%clk 0:00:04]}  Raxb5 {[%clk 0:00:10]} 40. Rxb5 {[%clk 0:00:05]}  Rxb5 {[%clk 0:00:10]} 41. Re1 {[%clk 0:00:05]}  e5 {[%clk 0:00:10]} 42. Kf2 {[%clk 0:00:05]}  Kd6 {[%clk 0:00:10]} 43. Rd1+ {[%clk 0:00:05]}  Rd5 {[%clk 0:00:10]} 44. Ra1 {[%clk 0:00:06]}  Ke6 {[%clk 0:00:10]} 45. Ke3 {[%clk 0:00:06]}  Rd4 {[%clk 0:00:10]} 46. Ra6 {[%clk 0:00:07]}  Rc4 {[%clk 0:00:10]} 47. Ra8 {[%clk 0:00:07]}  Rc2 {[%clk 0:00:09]} 48. Re8+ {[%clk 0:00:07]}  Kd5 {[%clk 0:00:09]} 49. Rd8+ {[%clk 0:00:07]}  Kc5 {[%clk 0:00:09]} 50. Re8 {[%clk 0:00:07]}  Kd6 {[%clk 0:00:09]} 51. Rd8+ {[%clk 0:00:07]}  Ke6 {[%clk 0:00:09]} 52. Re8+ {[%clk 0:00:07]}  Kf6 {[%clk 0:00:09]} 53. Rc8 {[%clk 0:00:07]}  Rxg2 {[%clk 0:00:09]} 54. Rxc6+ {[%clk 0:00:07]}  Kf5 {[%clk 0:00:09]} 55. Rc1 {[%clk 0:00:05]}  Rg3 {[%clk 0:00:09]} 56. Kf2 {[%clk 0:00:03]}  Rxh3 {[%clk 0:00:09]} 57. Kg2 {[%clk 0:00:04]}  Rg3+ {[%clk 0:00:10]} 58. Kf2 {[%clk 0:00:04]}  g4 {[%clk 0:00:07]} 59. fxg4+ {[%clk 0:00:04]}  Kxg4 {[%clk 0:00:07]} 60. Rc4+ {[%clk 0:00:04]}  Kg5 {[%clk 0:00:07]} 61. Re4 {[%clk 0:00:05]}  Rg4 {[%clk 0:00:02]} 62. Rxe5+ {[%clk 0:00:05]}  Kf6 {[%clk 0:00:03]} 63. Re8 {[%clk 0:00:06]}  g5 {[%clk 0:00:03]} 64. Rf8+ {[%clk 0:00:06]}  Ke5 {[%clk 0:00:03]} 65. Rg8 {[%clk 0:00:06]}  Rg3 {[%clk 0:00:03]} 66. Rf8 {[%clk 0:00:05]}  Ke4 {[%clk 0:00:02]} 67. Re8+ {[%clk 0:00:05]}  Kf4 {[%clk 0:00:02]} 68. Re1 {[%clk 0:00:04]}  Rf3+ {[%clk 0:00:02]} 69. Kg2 {[%clk 0:00:04]}  h3+ {[%clk 0:00:03]} 70. Kh2 {[%clk 0:00:04]}  g4 {[%clk 0:00:04]} 71. Ra1 {[%clk 0:00:04]}  Rf2+ {[%clk 0:00:04]} 72. Kh1 {[%clk 0:00:04]}  Kg3 {[%clk 0:00:04]} 73. Ra3+ {[%clk 0:00:04]}  Kh4 {[%clk 0:00:05]} 74. Ra1 {[%clk 0:00:05]}  Rd2 {[%clk 0:00:04]} 75. Ra4 {[%clk 0:00:04]}  Rd1+ {[%clk 0:00:04]} 76. Kh2 {[%clk 0:00:05]}  Rd2+ {[%clk 0:00:05]} 77. Kh1 {[%clk 0:00:05]}  Kg3 {[%clk 0:00:05]} 78. Ra3+ {[%clk 0:00:05]}  Kf2 {[%clk 0:00:05]} 79. Ra8 {[%clk 0:00:02]}  Rd1+ {[%clk 0:00:05]} 80. Kh2 {[%clk 0:00:03]}  g3+ {[%clk 0:00:05]} 81. Kxh3 {[%clk 0:00:03]}  Rh1+ {[%clk 0:00:06]} 82. Kg4 {[%clk 0:00:04]}  g2 {[%clk 0:00:07]} 83. Ra2+ {[%clk 0:00:04]}  Kf1 {[%clk 0:00:06]} 84. Kf3 {[%clk 0:00:05]}  Rh3+ {[%clk 0:00:05]} 85. Kf4 {[%clk 0:00:05]}  g1=Q {[%clk 0:00:05]} 86. Ra1+ {[%clk 0:00:05]}  Kg2 {[%clk 0:00:05]} 87. Rxg1+ {[%clk 0:00:05]}  Kxg1 {[%clk 0:00:06]} 0-1


[Site "https://www.chess.com"]

[Event "Titled Tuesday Blitz March 08 Early 2022"]
[White "Skliarov, Viktor"]
[Black "Kosteniuk, Alexandra"]
[WhiteFideId "14106736"]
[BlackFideId "4128125"]
[WhiteElo "2229"]
[BlackElo "2469"]
[Result "1-0"]
[Round "09"]
[TimeControl "180+1"]
[Date "2022.03.08"]
[WhiteClock "0:00:10"]
[BlackClock "0:00:06"]

1. e4 {[%clk 0:03:00]}  c6 {[%clk 0:02:58]} 2. d4 {[%clk 0:03:00]}  d5 {[%clk 0:02:58]} 3. e5 {[%clk 0:03:00]}  c5 {[%clk 0:02:59]} 4. dxc5 {[%clk 0:03:00]}  e6 {[%clk 0:02:59]} 5. a3 {[%clk 0:03:00]}  Bxc5 {[%clk 0:02:55]} 6. b4 {[%clk 0:03:01]}  Bb6 {[%clk 0:02:54]} 7. Bb2 {[%clk 0:03:00]}  Ne7 {[%clk 0:02:54]} 8. Nf3 {[%clk 0:03:00]}  O-O {[%clk 0:02:49]} 9. Bd3 {[%clk 0:03:00]}  Ng6 {[%clk 0:02:49]} 10. O-O {[%clk 0:02:59]}  a5 {[%clk 0:02:47]} 11. b5 {[%clk 0:02:59]}  Nd7 {[%clk 0:02:46]} 12. c4 {[%clk 0:02:56]}  dxc4 {[%clk 0:02:45]} 13. Bxc4 {[%clk 0:02:56]}  Qc7 {[%clk 0:02:45]} 14. Qe2 {[%clk 0:02:55]}  Nc5 {[%clk 0:02:42]} 15. Nc3 {[%clk 0:02:45]}  Rd8 {[%clk 0:02:30]} 16. Rfd1 {[%clk 0:02:42]}  Bd7 {[%clk 0:02:30]} 17. g3 {[%clk 0:02:36]}  Be8 {[%clk 0:02:29]} 18. Rac1 {[%clk 0:02:35]}  Qe7 {[%clk 0:02:27]} 19. Ne4 {[%clk 0:02:32]}  Nxe4 {[%clk 0:02:16]} 20. Qxe4 {[%clk 0:02:33]}  Rac8 {[%clk 0:02:09]} 21. Kg2 {[%clk 0:02:19]}  Rxd1 {[%clk 0:01:58]} 22. Rxd1 {[%clk 0:02:16]}  Qc5 {[%clk 0:01:56]} 23. Rd4 {[%clk 0:02:00]}  Bxb5 {[%clk 0:01:54]} 24. Bxb5 {[%clk 0:01:49]}  Qxb5 {[%clk 0:01:55]} 25. Qxb7 {[%clk 0:01:50]}  Rf8 {[%clk 0:01:44]} 26. Rd2 {[%clk 0:01:24]}  Qc5 {[%clk 0:00:29]} 27. Bd4 {[%clk 0:01:23]}  Qxa3 {[%clk 0:00:29]} 28. Qxb6 {[%clk 0:01:16]}  Rc8 {[%clk 0:00:23]} 29. Bb2 {[%clk 0:01:15]}  Qb4 {[%clk 0:00:17]} 30. Qxb4 {[%clk 0:00:57]}  axb4 {[%clk 0:00:17]} 31. Rd4 {[%clk 0:00:58]}  Rb8 {[%clk 0:00:17]} 32. Rd7 {[%clk 0:00:49]}  h6 {[%clk 0:00:16]} 33. h4 {[%clk 0:00:48]}  Nf8 {[%clk 0:00:15]} 34. Rc7 {[%clk 0:00:47]}  b3 {[%clk 0:00:11]} 35. Nd4 {[%clk 0:00:44]}  Ng6 {[%clk 0:00:12]} 36. Rc5 {[%clk 0:00:31]}  Ne7 {[%clk 0:00:10]} 37. Rb5 {[%clk 0:00:31]}  Rd8 {[%clk 0:00:09]} 38. Rxb3 {[%clk 0:00:30]}  Nd5 {[%clk 0:00:09]} 39. Rb7 {[%clk 0:00:28]}  Rc8 {[%clk 0:00:09]} 40. Nf3 {[%clk 0:00:26]}  Rc2 {[%clk 0:00:07]} 41. Bd4 {[%clk 0:00:26]}  Ra2 {[%clk 0:00:07]} 42. h5 {[%clk 0:00:25]}  Rc2 {[%clk 0:00:06]} 43. Rb2 {[%clk 0:00:25]}  Rc4 {[%clk 0:00:06]} 44. Re2 {[%clk 0:00:21]}  Ne7 {[%clk 0:00:06]} 45. Be3 {[%clk 0:00:20]}  Nf5 {[%clk 0:00:06]} 46. Bf4 {[%clk 0:00:20]}  Ne7 {[%clk 0:00:06]} 47. Ra2 {[%clk 0:00:20]}  Nd5 {[%clk 0:00:06]} 48. Be3 {[%clk 0:00:19]}  Re4 {[%clk 0:00:06]} 49. Ra3 {[%clk 0:00:19]}  Rc4 {[%clk 0:00:05]} 50. Ra8+ {[%clk 0:00:18]}  Kh7 {[%clk 0:00:05]} 51. Ra7 {[%clk 0:00:18]}  Kg8 {[%clk 0:00:05]} 52. Nd4 {[%clk 0:00:14]}  Rc3 {[%clk 0:00:04]} 53. Kf3 {[%clk 0:00:14]}  Nb4 {[%clk 0:00:03]} 54. Nb5 {[%clk 0:00:13]}  Rb3 {[%clk 0:00:03]} 55. Nd6 {[%clk 0:00:12]}  Nc6 {[%clk 0:00:03]} 56. Ra8+ {[%clk 0:00:11]}  Rb8 {[%clk 0:00:03]} 57. Rxb8+ {[%clk 0:00:11]}  Nxb8 {[%clk 0:00:03]} 58. Ke4 {[%clk 0:00:11]}  Nd7 {[%clk 0:00:04]} 59. Bd4 {[%clk 0:00:11]}  Kf8 {[%clk 0:00:05]} 60. f4 {[%clk 0:00:11]}  Ke7 {[%clk 0:00:05]} 61. g4 {[%clk 0:00:11]}  Kf8 {[%clk 0:00:05]} 62. f5 {[%clk 0:00:11]}  Ke7 {[%clk 0:00:06]} 63. Nc4 {[%clk 0:00:10]}  Kf8 {[%clk 0:00:06]} 64. Nb6 {[%clk 0:00:11]}  Nb8 {[%clk 0:00:05]} 65. Bc5+ {[%clk 0:00:11]}  Kg8 {[%clk 0:00:05]} 66. Nc8 {[%clk 0:00:11]}  Nd7 {[%clk 0:00:05]} 67. Bd6 {[%clk 0:00:10]}  Kh7 {[%clk 0:00:05]} 68. Ne7 {[%clk 0:00:10]}  Nb6 {[%clk 0:00:04]} 69. Nc6 {[%clk 0:00:10]}  Nd5 {[%clk 0:00:04]} 70. fxe6 {[%clk 0:00:10]}  fxe6 {[%clk 0:00:04]} 71. Nd8 {[%clk 0:00:10]}  Nc3+ {[%clk 0:00:04]} 72. Kd3 {[%clk 0:00:11]}  Nd5 {[%clk 0:00:04]} 73. Nxe6 {[%clk 0:00:11]}  Kg8 {[%clk 0:00:05]} 74. Ke4 {[%clk 0:00:11]}  Nc3+ {[%clk 0:00:05]} 75. Kd4 {[%clk 0:00:10]}  Ne2+ {[%clk 0:00:05]} 76. Kc5 {[%clk 0:00:10]}  Kf7 {[%clk 0:00:05]} 77. Nd4 {[%clk 0:00:10]}  Nc3 {[%clk 0:00:04]} 78. Kc6 {[%clk 0:00:10]}  Ke8 {[%clk 0:00:05]} 79. e6 {[%clk 0:00:10]}  Ne4 {[%clk 0:00:06]} 80. Nf5 {[%clk 0:00:10]} 1-0


[Site "https://www.chess.com"]